Cogmind - Beta 9.6 @@@ ROGUE MODE // 2020.04.29 @ 00:23:48 Player: Baran Korkmaz Result: Destroyed by G-34 Mercenary with Small Laser Performance ------------- Evolutions (1) 500 Regions Visited (2) 400 Robots Destroyed (17) 85 Value Destroyed (464) 464 Prototype IDs (0) 0 Alien Tech Used (0) 0 Bonus (0) 0 TOTAL SCORE: 1449 Bonus ------- None Cogmind --------- Core Integrity 0/400 Matter 300/300 Energy 99/100 System Corruption 0% Temperature Cool (6) Movement Core (100) Ox1 Location -9/Materials Parts ------- > --- POWER (1) -------- (None) > --- PROPULSION (2) --- (None) > --- UTILITY (4) ------ Small Storage Unit Visual Processing Unit > --- WEAPON (2) ------- (None) > --- INVENTORY (6) ---- Ion Engine Improved Ion Engine Aluminum Leg Heat Sink Large Matter Pod (150) Structural Scanner Peak State ------------ > --- POWER ------------ Light Ion Engine > --- PROPULSION ------- Compact Wheel Compact Wheel > --- UTILITY ---------- Small Storage Unit Visual Processing Unit Sensor Array ECM Suite > --- WEAPON ----------- Medium Laser Light Assault Rifle > --- INVENTORY -------- Aluminum Leg Heat Sink Large Matter Pod Structural Scanner Light Assault Rifle [Rating: 10] Favorites ----------- Power Light Ion Engine Engine Light Ion Engine Propulsion Compact Wheel Wheel Compact Wheel Utility Small Storage Unit Device Sensor Array Storage Small Storage Unit Processor Visual Processing Unit Weapon EM Pulse Gun Energy Gun EM Pulse Gun Ballistic Gun Light Assault Rifle Build | -11 -10 -9 ------- Run | Scr Mat Mat Slots Evolved 2 | . . 2 Power . | . . . Propulsion . | . . . Utility 2 | . . 2 Weapon . | . . . Parts Attached 17 | 6 2 9 Power 2 | 1 . 1 Engine 2 | 1 . 1 Core . | . . . Reactor . | . . . Propulsion 3 | 2 . 1 Treads . | . . . Leg . | . . . Wheel 3 | 2 . 1 Hover . | . . . Flight . | . . . Utility 6 | 1 2 3 Device 3 | . 1 2 Storage 2 | 1 1 . Processor 1 | . . 1 Hackware . | . . . Protection . | . . . Artifact . | . . . Weapon 6 | 2 . 4 Energy Gun 4 | 2 . 2 Energy Cannon . | . . . Ballistic Gun 2 | . . 2 Ballistic Cannon . | . . . Launcher . | . . . Special Weapon . | . . . Impact Weapon . | . . . Slashing Weapon . | . . . Piercing Weapon . | . . . Special Melee Weapon . | . . . Unidentified Prototypes . | . . . Parts Lost 13 | . 1 12 Power 2 | . . 2 Propulsion 3 | . 1 2 Utility 2 | . . 2 Weapon 6 | . . 6 Highest Loss Streak 8 | . 1 8 Average Slot Usage (%) 90 | . 94 85 Engine 11 | . 14 9 Wheel 22 | . 26 17 Device 13 | . 7 18 Storage 14 | . 17 11 Processor 5 | . . 11 Energy Gun 18 | . 28 9 Ballistic Gun 3 | . . 7 Naked Turns . | . . . Heaviest Build 14 | 11 14 13 Greatest Support 32 | 32 32 32 Greatest Overweight (x) 1 | . . 1 Average Overweight (x) . | . . . Largest Inventory Capacity 6 | 6 6 6 Average Capacity 5 | 4 6 6 Most Carried 6 | 3 6 6 Average Carried 4 | 1 4 5 Final Capacity 6 | 6 6 6 Final Carried 6 | 2 6 6 Class Distribution -------------------- 71% | Mutant 28% | Scavenger-Mutant Dominant Class ---------------- Mutant | -10/Materials Scavenger-Mutant | -9/Materials Resources | -11 -10 -9 ----------- Run | Scr Mat Mat Matter Collected 488 | 260 170 58 Remotely . | . . . Salvage Created 596 | . 363 233 Parts 36 | . 18 18 Haulers Intercepted . | . . . Recyclers Shooed . | . . . Parts Field Recycled . | . . . Retrieved Matter . | . . . Parts Self-Destructed . | . . . Prevented . | . . . Kills | -11 -10 -9 ------- Run | Scr Mat Mat Combat Hostiles Destroyed 13 | . 6 7 Guns 11 | . 5 6 AOE 1 | . . 1 Classes Destroyed 3 | . 2 1 Watcher 4 | . 3 1 Swarmer 3 | . . 3 Grunt 10 | . 6 4 Best Kill Streak 4 | . 4 3 Combat Bots Only 3 | . 3 3 Max Kills in Single Turn 1 | . 1 1 Gunslinging . | . . . Exploded 1 | . . 1 Melee . | . . . Uniques/NPCs Destroyed . | . . . Combat | -11 -10 -9 -------- Run | Scr Mat Mat Damage Taken 1115 | . 170 945 Core 482 | . 78 404 Absorbed by Shields . | . . . Core Remaining (%) 84 | 100 68 . Volleys Fired 50 | . 20 30 Largest 2 | . 2 2 Hottest 80 | . 80 80 Shots Fired 80 | . 40 40 Gun 80 | . 40 40 Cannon . | . . . Launcher . | . . . Special . | . . . Kinetic 14 | . . 14 Thermal 21 | . . 21 Explosive . | . . . Electromagnetic 45 | . 40 5 Robot Hit Streak 7 | . 7 7 Robot Miss Streak 2 | . 2 2 Penetration Max . | . . . Secondary Targets 1 | . . 1 Max Gunslinging Chain 1 | . . 1 Shots Hit Robots 43 | . 25 18 Core Hits 25 | . 12 13 Critical Hits . | . . . Critical Kills . | . . . Critical Parts Destroyed . | . . . Melee Attacks . | . . . Impact . | . . . Slashing . | . . . Piercing . | . . . Sneak Attacks . | . . . Combat Hostiles . | . . . Follow-up Attacks . | . . . Damage Inflicted 897 | . 384 513 Guns 577 | . 384 193 Cannons . | . . . Explosions 320 | . . 320 Melee . | . . . Ramming . | . . . Kinetic 82 | . . 82 Thermal 99 | . . 99 Explosive 320 | . . 320 Electromagnetic 396 | . 384 12 Impact . | . . . Slashing . | . . . Piercing . | . . . Highest Corruption . | . . . Average Corruption . | . . . Corruption Purged . | . . . Overload Shots . | . . . Overflow Damage 40 | . . 40 Projectiles . | . . . Explosions 40 | . . 40 Melee . | . . . Knockbacks . | . . . Impact . | . . . Kinetic . | . . . Secondary . | . . . Self-Inflicted Damage 93 | . . 93 Shots 2 | . . 2 Rammed . | . . . Targets Rammed . | . . . Kicked . | . . . Crushed . | . . . Highest Temperature 298 | . 298 38 Average Temperature 75 | . 104 9 Received Heat Transfer 462 | . 90 372 Effects 1 | . 1 . Energy Bleed 1 | . 1 . Siege Activations . | . . . Robots Corrupted 1 | . 1 . Combat Hostiles 1 | . 1 . Parts Fried 3 | . 3 . Impact Corruptions . | . . . Robots Melted . | . . . Combat Hostiles . | . . . Parts Melted . | . . . Heat Transferred 296 | . . 296 Parts Sabotaged . | . . . Parts Stolen . | . . . Parts Stripped . | . . . Power Chain Reactions . | . . . Missiles Intercepted . | . . . Alert | -11 -10 -9 ------- Run | Scr Mat Mat Peak Influence 235 | . 198 235 Average Influence 123 | . 84 181 Maximum Alert Level 1 | . . 1 Low Security (%) 77 | 100 100 51 Level 1 22 | . . 48 Level 2 . | . . . Level 3 . | . . . Level 4 . | . . . Level 5 . | . . . High Security . | . . . Max Security . | . . . Squads Dispatched 4 | . 2 2 Investigation 3 | . 2 1 Extermination . | . . . Reinforcement 1 | . . 1 Assault . | . . . Garrison . | . . . Intercept . | . . . Construction Impeded . | . . . Haulers Reinforced . | . . . Stealth | -11 -10 -9 --------- Run | Scr Mat Mat Distress Signals 4 | . 1 3 Communications Jammed . | . . . Distress Signals . | . . . Times Spotted 44 | . 11 33 Peak Tracking Total 11 | . 4 11 Tactical Retreats 6 | . . 6 Traps | -11 -10 -9 ------- Run | Scr Mat Mat Traps Triggered . | . . . Indirectly . | . . . Trap Hack Attempts . | . . . Triggered . | . . . Disarmed . | . . . Reprogrammed . | . . . Reused . | . . . Traps Extracted . | . . . Installed . | . . . Triggered . | . . . Machines | -11 -10 -9 ---------- Run | Scr Mat Mat Machines Disabled 3 | . . 3 Max in Single Turn 2 | . . 2 Machines Sabotaged . | . . . Garrisons Compromised . | . . . Overloaded Fab Kills . | . . . Fab Network Shutdowns . | . . . Hacking | -11 -10 -9 --------- Run | Scr Mat Mat Machines Accessed 6 | . 4 2 Terminals 4 | . 3 1 Fabricators . | . . . Repair Stations . | . . . Recycling Units 1 | . 1 . Scanalyzers 1 | . . 1 Garrison Access . | . . . Total Hacks 17 | . 12 5 Successful 10 | . 7 3 Failed 7 | . 5 2 Catastrophic 1 | . 1 . Database Lockouts . | . . . Manual . | . . . Terminals 9 | . 7 2 Fabricators . | . . . Repair Stations . | . . . Recycling Units 5 | . 5 . Scanalyzers 3 | . . 3 Garrison Access . | . . . Terminal Hacks 4 | . 4 . Record 1 | . 1 . Locate Traps 1 | . 1 . Maintenance Status 1 | . 1 . Investigation Status 1 | . 1 . Fabricator Hacks . | . . . Repair Station Hacks . | . . . Recycling Unit Hacks 3 | . 3 . Recycle Component 2 | . 2 . Report Inventory 1 | . 1 . Scanalyzer 3 | . . 3 Insert Component 2 | . . 2 Analyze 1 | . . 1 Garrison Access Hacks . | . . . Unauthorized Hacks . | . . . Terminals . | . . . Fabricators . | . . . Repair Stations . | . . . Recycling Units . | . . . Scanalyzers . | . . . Garrison Access . | . . . Data Cores Recovered . | . . . Used . | . . . Hacking Detections 4 | . 2 2 Full Trace Events 3 | . 2 1 Feedback Events . | . . . Feedback Blocked . | . . . Robot Schematics Acquired . | . . . Robots Built . | . . . Matter . | . . . Time . | . . . Total Robot Build Rating . | . . . Part Schematics Acquired 1 | . . 1 Parts Built . | . . . Matter . | . . . Time . | . . . Total Part Build Rating . | . . . Parts Repaired . | . . . Time . | . . . Parts Recycled 2 | . 2 . Recycled Matter . | . . . Retrieved Matter . | . . . Retrieved Components . | . . . Parts Scanalyzed 1 | . . 1 Part Schematics Acquired 1 | . . 1 Parts Damaged . | . . . Bothacking | -11 -10 -9 ------------ Run | Scr Mat Mat Used RIF Installer . | . . . Robots Hacked . | . . . Non-combat . | . . . Combat . | . . . Robot Hacks Applied . | . . . Relay Couplers Released . | . . . Robots Rewired . | . . . Allies Hacked . | . . . Hacks Repelled . | . . . Allies | -11 -10 -9 -------- Run | Scr Mat Mat Total Allies . | . . . Largest Group . | . . . Highest-Rated Group . | . . . Highest-Rated Ally . | . . . Total Orders . | . . . Ally Attacks . | . . . Total Damage . | . . . Kills . | . . . Allies Corrupted . | . . . Allies Melted . | . . . Intel | -11 -10 -9 ------- Run | Scr Mat Mat Robot Analysis Total . | . . . Derelict Logs Recovered . | . . . Drone Launches . | . . . Drone Recoveries . | . . . Exploration | -11 -10 -9 ------------- Run | Scr Mat Mat Turns Passed 637 | 49 291 297 Spaces Moved 382 | 36 202 144 Core 16 | 1 . 15 Treads . | . . . Legs . | . . . Wheels 366 | 35 202 129 Hover . | . . . Flight . | . . . Fastest Speed 50 | 50 100 100 Average Speed 99 | 98 100 100 Slowest Speed 100 | 100 100 100 Overloaded Moves . | . . . Propulsion Burnouts . | . . . Robots Hopped . | . . . Cave-ins Triggered . | . . . Exploration Rate (%) 18 | 3 34 18 Regions Visited 2 Branch Regions . Pre-discovered Areas . | . . . Known Exits Taken . | . . . Unknown Exits Taken 2 | 1 1 . Scrap Searched . | . . . Spaces Dug . | . . . Terrain Destroyed 40 | . . 40 Melee . | . . . Projectile . | . . . AOE 40 | . . 40 Actions | -11 -10 -9 --------- Run | Scr Mat Mat Total 563 | 49 252 262 Wait 85 | . 17 68 Move 380 | 35 201 144 Hop . | . . . Pick Up 26 | 8 9 9 Fast Attach . | . . . Attach 17 | 6 2 9 Detach 2 | . 1 1 Swap . | . . . Drop 3 | . 2 1 Fire 50 | . 20 30 Melee . | . . . Ram . | . . . Kick . | . . . Crush . | . . . Escape Stasis . | . . . Rewire . | . . . Trap . | . . . Miscellaneous . | . . . Route ------- -11/Scrapyard -10/Materials -9/Materials (discovered 1 exit: [*Sto]) History --------- Turn | Location | Event 20 | -11/Scrapyard | Discovered new exit (range 14) 50 | -11/Scrapyard | Entered Materials 211 | -10/Materials | Discovered new exit (range 15) 309 | -10/Materials | Build established: Mutant 341 | -10/Materials | Entered another Materials area 341 | -9/Materials | Evolved 2 slots: Utility x2 415 | -9/Materials | Lost 3 parts (1p2w) 611 | -9/Materials | Core integrity fell below 50% 629 | -9/Materials | Discovered new exit (range 8) 632 | -9/Materials | Core integrity fell below 20% 638 | -9/Materials | Destroyed by G-34 Mercenary with Small Laser Last Messages --------------- Switching to secondary target: G-34 Mercenary. R-06 Scavenger collects Aluminum Leg. Acquired Ion Engine. Lgt. Assault Rifle destroyed. R-06 Scavenger collects Heat Sink. Lgt. Assault Rifle destroyed. Com. Wheel destroyed. ECM Suite destroyed. Sensor Array destroyed. K-01 Serf collects debris. Acquired Imp. Ion Engine. Lgt. Ion Engine destroyed. Com. Wheel destroyed. Sml. Laser destroyed. Nuclear Reactor explodes. Destroyed Aluminum Leg. Destroyed Sml. Laser. G-34 Mercenary destroyed. EXIT=FOUND The unstable cave ceiling collapses. Map ----- +----------------------------------------------------+ | ?????# #?????? #???????????????? | | ??????? ####### #???????????????? | | #########+### #???????????????? | | = #???????????????? | | = ###?????????????? | | ! ""#?????????????? | | ##+### "" ""########??????? | | ?# """ T"# #??????? | | ?# """ ""# """ #??????? | | # """ ""# """ #??????? | | # """ ### """ #??????? | | # #?# ???????? | | # % #?# ?????????? | | #* """ """ ####+####???????? | | #%!""" """ #???????? | | #= """ """ #???????? | | ###### """ """ #???????? | | ?????# """ """ ###+####???????? | | ?????# ## #????????? | | ?##### ## #????????? | | "T" ## #????????? | | g ## #????????? | | ## #????????? | | #####+########## gg ## #????????? | | ??? ???????## g #????????? | | ??# "????????# g @ #????????? | | ??# ?????????# %g ##????????? | | ??#??????????# ##?????????? | | ?????????????# #??????????? | | ?????????????# # #??????????? | | ?????????????# #??????????? | | ?????????????# #??????????? | | ?????????????# #??????????? | | ?????????????# #??????????? | | ?????????????#### # ####??????????? | | ????????????????### # ??????????? | | ????????????????? #### #?????????? | | ???????????????? ???? #?????????? | | ??????????????? ???? ? #?????????? | | ?????????????? < ???? ?#?????????? | | ????????????? ???? ???????????? | | ????????????# ????? ???????????? | | ????????????####?#??????+???????????? | | ????????????????????????????????????? | | ????????????????????????????????????? | | ????????????????????????????????????? | | ????????????????????????????????????? | | ????????????????????????????????????? | | ????????????????????????????????????? | | ????????????????????????????????????? | +----------------------------------------------------+ Best States ------------- Heat Dissipation 28 Energy Generation 10 Energy Capacity 125 Matter Stores 450 Matter Capacity 450 Sight Range 18 Robot Scan Range 10 Terrain Scan Density 10 ECM Strength 1 Evasion (%) 40 Item Schematics ----------------- Lgt. Assault Rifle | -9/Materials | Scanalyzed Robot Schematics ------------------ None Fabricated ------------ Nothing Alien Tech Used ----------------- None Achievements -------------- Power Corrupts Challenges ------------ None Game ------ Seed SuspensionRelayDoomcannon Manual? 0 Play Time 00:24:22 Cumulative 4.4 hours Start 2020.04.28 @ 23:58:18 End 2020.04.29 @ 00:23:48 Sessions 1 Manual Loads 0 Difficulty Rogue Special Mode None Game No. 4 Rogue 4 Adventurer 0 Explorer 0 Win Type - Total 0 Types 0/0/0/0/0/0/0 Lore% 2 Gallery% 9 Achievement% 7 Wizard Run 0 Options --------- ASCII 1 Keyboard 0 Movement Mouse Keybinds 0 Fullscreen 1 Font 14/Smallcaps Map View 72x54 Tactical HUD 0 Map Filters NONE Filters NONE Steam 1 RUN: 14bba3e4-a477-4d7d-9c58-11e2807209e4